[Event "Early-Titled-Tuesday-Blitz-September-26-2023"]
[Site "Chess.com"]
[Date "2023.09.26"]
[Round "5"]
[White "Wizard_97"]
[Black "Gabix_94"]
[Result "0-1"]
[WhiteElo "2552"]
[BlackElo "2711"]
[TimeControl "180+1"]
[EndTime "8:57:11 PDT"]
[Termination "Gabix_94 won by resignation"]

1. e4 {[%clk 0:03:00.9]} 1... c6 {[%clk 0:02:50.6]} 2. d4 {[%clk 0:02:59.7]}
2... d5 {[%clk 0:02:50.3]} 3. Nd2 {[%clk 0:02:59.9]} 3... g6 {[%clk 0:02:49.1]}
4. c3 {[%clk 0:02:55.7]} 4... Bg7 {[%clk 0:02:49]} 5. Bd3 {[%clk 0:02:55.7]}
5... Nd7 {[%clk 0:02:42.4]} 6. Ngf3 {[%clk 0:02:55.3]} 6... dxe4 {[%clk
0:02:39.5]} 7. Nxe4 {[%clk 0:02:54.9]} 7... Ngf6 {[%clk 0:02:40.2]} 8. O-O
{[%clk 0:02:55.1]} 8... Nxe4 {[%clk 0:02:39.7]} 9. Bxe4 {[%clk 0:02:56]} 9...
O-O {[%clk 0:02:40.4]} 10. h3 {[%clk 0:02:52.8]} 10... Qc7 {[%clk 0:02:40.5]}
11. Re1 {[%clk 0:02:52]} 11... Re8 {[%clk 0:02:38.2]} 12. Bc2 {[%clk 0:02:49.7]}
12... b6 {[%clk 0:02:32.9]} 13. Bg5 {[%clk 0:02:39.6]} 13... e6 {[%clk
0:02:26.2]} 14. Bh4 {[%clk 0:02:38.5]} 14... Ba6 {[%clk 0:02:16.2]} 15. Bg3
{[%clk 0:02:37]} 15... Qb7 {[%clk 0:02:16.5]} 16. Be4 {[%clk 0:02:31.8]} 16...
Nf6 {[%clk 0:02:12.3]} 17. Bc2 {[%clk 0:02:31.6]} 17... Rad8 {[%clk 0:02:11.9]}
18. Be5 {[%clk 0:02:30.8]} 18... c5 {[%clk 0:02:10]} 19. Qc1 {[%clk 0:02:30.5]}
19... Bb5 {[%clk 0:02:03.1]} 20. Qf4 {[%clk 0:02:27.5]} 20... Nh5 {[%clk
0:01:59.7]} 21. Qh4 {[%clk 0:02:26.1]} 21... Bc6 {[%clk 0:01:59.7]} 22. Be4
{[%clk 0:02:23.2]} 22... Bxe4 {[%clk 0:01:56.3]} 23. Qxe4 {[%clk 0:02:22.6]}
23... Qxe4 {[%clk 0:01:56]} 24. Rxe4 {[%clk 0:02:23.5]} 24... Bxe5 {[%clk
0:01:51]} 25. dxe5 {[%clk 0:02:21]} 25... Rd3 {[%clk 0:01:46.5]} 26. Kf1 {[%clk
0:02:15.9]} 26... Red8 {[%clk 0:01:46.4]} 27. Ke2 {[%clk 0:02:15.9]} 27... Ng7
{[%clk 0:01:40.2]} 28. Nd4 {[%clk 0:02:14.1]} 28... c4 {[%clk 0:01:34.6]} 29. g4
{[%clk 0:02:11.9]} 29... Rd5 {[%clk 0:01:24.8]} 30. f3 {[%clk 0:02:03]} 30... h5
{[%clk 0:01:21.6]} 31. a4 {[%clk 0:02:02]} 31... hxg4 {[%clk 0:01:20.4]} 32.
hxg4 {[%clk 0:02:02.9]} 32... Ne8 {[%clk 0:01:18.2]} 33. a5 {[%clk 0:01:48.8]}
33... b5 {[%clk 0:01:04.4]} 34. a6 {[%clk 0:01:48.1]} 34... Nc7 {[%clk
0:01:03.9]} 35. Ra5 {[%clk 0:01:47.3]} 35... Kg7 {[%clk 0:01:01.3]} 36. Nc6
{[%clk 0:01:40.2]} 36... Rd2+ {[%clk 0:00:59.4]} 37. Ke3 {[%clk 0:01:39.8]}
37... R5d3+ {[%clk 0:00:56.7]} 38. Kf4 {[%clk 0:01:40.1]} 38... Rf2 {[%clk
0:00:56.3]} 39. Re3 {[%clk 0:01:25.5]} 39... Rxb2 {[%clk 0:00:49.5]} 40. Rxd3
{[%clk 0:01:21]} 40... cxd3 {[%clk 0:00:50.4]} 41. Nxa7 {[%clk 0:01:18.9]} 41...
Nd5+ {[%clk 0:00:47.3]} 42. Kg3 {[%clk 0:01:18.8]} 42... d2 {[%clk 0:00:47.5]}
43. Ra1 {[%clk 0:01:18.7]} 43... Nxc3 {[%clk 0:00:48]} 44. Nxb5 {[%clk
0:01:07.2]} 44... Nxb5 {[%clk 0:00:47.3]} 45. Kf4 {[%clk 0:01:06.5]} 45... Rc2
{[%clk 0:00:44.1]} 46. Ke3 {[%clk 0:01:06.3]} 46... Rc1 {[%clk 0:00:43.4]} 0-1

[Event "Early-Titled-Tuesday-Blitz-September-26-2023"]
[Site "Chess.com"]
[Date "2023.09.26"]
[Round "5"]
[White "Darius321"]
[Black "AleksandraMilovic"]
[Result "1-0"]
[WhiteElo "2350"]
[BlackElo "2043"]
[TimeControl "180+1"]
[EndTime "8:57:11 PDT"]
[Termination "Darius321 won on time"]

1. e4 {[%clk 0:02:59.2]} 1... c5 {[%clk 0:02:59.9]} 2. Nf3 {[%clk 0:02:56.8]}
2... e6 {[%clk 0:03:00]} 3. c3 {[%clk 0:02:55.6]} 3... d5 {[%clk 0:02:59.5]} 4.
e5 {[%clk 0:02:56.2]} 4... d4 {[%clk 0:02:58.3]} 5. b3 {[%clk 0:02:50.8]} 5...
Nc6 {[%clk 0:02:54.8]} 6. Bb2 {[%clk 0:02:50.6]} 6... Nge7 {[%clk 0:02:31.8]} 7.
Na3 {[%clk 0:02:48.9]} 7... Nf5 {[%clk 0:02:20.8]} 8. Bd3 {[%clk 0:02:48.5]}
8... Be7 {[%clk 0:02:07.5]} 9. O-O {[%clk 0:02:42.6]} 9... O-O {[%clk
0:01:59.2]} 10. Re1 {[%clk 0:02:42.6]} 10... a6 {[%clk 0:01:21.2]} 11. Nc2
{[%clk 0:02:41.7]} 11... dxc3 {[%clk 0:00:58.2]} 12. dxc3 {[%clk 0:02:42.6]}
12... b5 {[%clk 0:00:53.7]} 13. a4 {[%clk 0:02:28.7]} 13... b4 {[%clk
0:00:28.2]} 14. cxb4 {[%clk 0:02:28.5]} 14... cxb4 {[%clk 0:00:29.1]} 15. Bxf5
{[%clk 0:02:24.2]} 15... exf5 {[%clk 0:00:24.8]} 16. Qe2 {[%clk 0:02:24.3]}
16... Be6 {[%clk 0:00:20]} 17. Qe3 {[%clk 0:02:21.6]} 17... f4 {[%clk
0:00:19.7]} 18. Qe4 {[%clk 0:02:16.9]} 18... Bd5 {[%clk 0:00:19.1]} 19. Qxf4
{[%clk 0:02:12.7]} 19... Bxb3 {[%clk 0:00:19]} 20. Ncd4 {[%clk 0:02:13.2]} 20...
Nxd4 {[%clk 0:00:17.9]} 21. Nxd4 {[%clk 0:02:13.8]} 21... Bg5 {[%clk 0:00:17.7]}
22. Qe4 {[%clk 0:02:11.2]} 22... Bd5 {[%clk 0:00:17]} 23. Qg4 {[%clk 0:02:07.5]}
23... Bh6 {[%clk 0:00:15.9]} 24. Nf5 {[%clk 0:02:06.5]} 24... Qg5 {[%clk
0:00:14.6]} 25. Nxh6+ {[%clk 0:01:51.8]} 25... Qxh6 {[%clk 0:00:15.5]} 26. Rad1
{[%clk 0:01:51.6]} 26... Be6 {[%clk 0:00:13.7]} 27. Qe4 {[%clk 0:01:46.9]} 27...
a5 {[%clk 0:00:11.3]} 28. f4 {[%clk 0:01:46.6]} 28... g6 {[%clk 0:00:10.1]} 29.
h3 {[%clk 0:01:44.9]} 29... Qh4 {[%clk 0:00:07.2]} 30. Re3 {[%clk 0:01:39]}
30... h5 {[%clk 0:00:05.9]} 31. Kh2 {[%clk 0:01:32.8]} 31... Rad8 {[%clk
0:00:06.3]} 32. Rd6 {[%clk 0:01:31.8]} 32... Qe7 {[%clk 0:00:04.8]} 33. Red3
{[%clk 0:01:28.9]} 33... Bf5 {[%clk 0:00:04.7]} 34. Qd4 {[%clk 0:01:24.3]} 34...
Bxd3 {[%clk 0:00:02.5]} 35. e6 {[%clk 0:01:23.1]} 35... f6 {[%clk 0:00:02.1]}
36. Rd7 {[%clk 0:01:23.2]} 36... Rxd7 {[%clk 0:00:01.8]} 37. exd7 {[%clk
0:01:21.7]} 37... Rd8 {[%clk 0:00:02.3]} 38. Qxd3 {[%clk 0:01:20.1]} 1-0

[Event "Early-Titled-Tuesday-Blitz-September-26-2023"]
[Site "Chess.com"]
[Date "2023.09.26"]
[Round "5"]
[White "Aswathchess"]
[Black "mapleaff"]
[Result "1-0"]
[WhiteElo "2589"]
[BlackElo "2333"]
[TimeControl "180+1"]
[EndTime "8:57:15 PDT"]
[Termination "Aswathchess won by resignation"]

1. e4 {[%clk 0:02:59.4]} 1... c5 {[%clk 0:02:58.7]} 2. Nc3 {[%clk 0:02:58.9]}
2... Nc6 {[%clk 0:02:54.6]} 3. Bb5 {[%clk 0:02:58.2]} 3... Nd4 {[%clk
0:02:51.2]} 4. Nf3 {[%clk 0:02:58.1]} 4... Nxb5 {[%clk 0:02:49.3]} 5. Nxb5
{[%clk 0:02:59]} 5... a6 {[%clk 0:02:49.5]} 6. Nc3 {[%clk 0:02:59.1]} 6... e6
{[%clk 0:02:50.4]} 7. O-O {[%clk 0:02:59]} 7... Ne7 {[%clk 0:02:49.5]} 8. d4
{[%clk 0:02:44.9]} 8... cxd4 {[%clk 0:02:50.4]} 9. Qxd4 {[%clk 0:02:42.9]} 9...
Nc6 {[%clk 0:02:49.7]} 10. Qe3 {[%clk 0:02:40.8]} 10... Be7 {[%clk 0:02:46.7]}
11. e5 {[%clk 0:02:40.5]} 11... O-O {[%clk 0:02:45.6]} 12. Rd1 {[%clk
0:02:36.5]} 12... Qc7 {[%clk 0:02:40.2]} 13. Qe2 {[%clk 0:02:36.5]} 13... b6
{[%clk 0:02:36.9]} 14. Bf4 {[%clk 0:02:36.1]} 14... Bb7 {[%clk 0:02:35.8]} 15.
Ne4 {[%clk 0:02:36]} 15... Nb4 {[%clk 0:02:29.8]} 16. c3 {[%clk 0:02:25.9]}
16... Nd5 {[%clk 0:02:29.3]} 17. Bg5 {[%clk 0:02:24.1]} 17... Bxg5 {[%clk
0:02:25.9]} 18. Nexg5 {[%clk 0:02:25]} 18... h6 {[%clk 0:02:25.7]} 19. Ne4
{[%clk 0:02:21.3]} 19... f5 {[%clk 0:02:21.4]} 20. Nd6 {[%clk 0:02:16.3]} 20...
Nf4 {[%clk 0:02:03.4]} 21. Qe3 {[%clk 0:02:15.2]} 21... Ng6 {[%clk 0:02:03.6]}
22. Re1 {[%clk 0:02:00.8]} 22... b5 {[%clk 0:01:47.6]} 23. Rad1 {[%clk
0:01:59.4]} 23... Bd5 {[%clk 0:01:44.6]} 24. a3 {[%clk 0:01:58.1]} 24... Qc6
{[%clk 0:01:43.8]} 25. Nd4 {[%clk 0:01:56.8]} 25... Qc7 {[%clk 0:01:39.7]} 26.
N4xf5 {[%clk 0:01:55.2]} 26... Bxg2 {[%clk 0:01:34.8]} 27. Qg3 {[%clk
0:01:40.7]} 27... exf5 {[%clk 0:01:24.1]} 28. Qxg6 {[%clk 0:01:38.6]} 28... Bh3
{[%clk 0:01:11.6]} 29. Rd3 {[%clk 0:01:29.2]} 29... Bg4 {[%clk 0:01:06.3]} 30.
Rg3 {[%clk 0:01:25.7]} 30... Qc6 {[%clk 0:00:23.5]} 31. h3 {[%clk 0:01:23.3]}
31... h5 {[%clk 0:00:20.4]} 32. hxg4 {[%clk 0:01:17.4]} 32... hxg4 {[%clk
0:00:21.3]} 33. Qg5 {[%clk 0:01:06.9]} 1-0

[Event "Early-Titled-Tuesday-Blitz-September-26-2023"]
[Site "Chess.com"]
[Date "2023.09.26"]
[Round "5"]
[White "Javylavilla"]
[Black "TatjanaVasilevich"]
[Result "0-1"]
[WhiteElo "2322"]
[BlackElo "2554"]
[TimeControl "180+1"]
[EndTime "8:57:18 PDT"]
[Termination "TatjanaVasilevich won by checkmate"]

1. e4 {[%clk 0:03:00.9]} 1... c5 {[%clk 0:02:57.8]} 2. Nf3 {[%clk 0:02:59.6]}
2... e6 {[%clk 0:02:57.2]} 3. b3 {[%clk 0:02:58.7]} 3... d5 {[%clk 0:02:57]} 4.
exd5 {[%clk 0:02:57.9]} 4... exd5 {[%clk 0:02:56.6]} 5. d4 {[%clk 0:02:58.4]}
5... cxd4 {[%clk 0:02:56.9]} 6. Nxd4 {[%clk 0:02:57]} 6... Nc6 {[%clk
0:02:57.2]} 7. Bb2 {[%clk 0:02:56.5]} 7... Nf6 {[%clk 0:02:57.6]} 8. Bd3 {[%clk
0:02:52.6]} 8... Bd6 {[%clk 0:02:57.9]} 9. Nf3 {[%clk 0:02:47.4]} 9... O-O
{[%clk 0:02:56.5]} 10. h3 {[%clk 0:02:47.1]} 10... Re8+ {[%clk 0:02:55.9]} 11.
Kf1 {[%clk 0:02:43.6]} 11... Ne4 {[%clk 0:02:52.6]} 12. Nbd2 {[%clk 0:02:42]}
12... Qc7 {[%clk 0:02:41.5]} 13. c4 {[%clk 0:02:40.2]} 13... Bc5 {[%clk
0:02:35.7]} 14. cxd5 {[%clk 0:02:23.2]} 14... Nxf2 {[%clk 0:02:34.5]} 15. Bxh7+
{[%clk 0:02:23]} 15... Kxh7 {[%clk 0:02:17.2]} 16. Qc2+ {[%clk 0:02:22.5]} 16...
Kg8 {[%clk 0:02:14.9]} 17. Qxc5 {[%clk 0:02:22.3]} 17... Nxh1 {[%clk 0:02:14.8]}
18. dxc6 {[%clk 0:01:52.6]} 18... Qg3 {[%clk 0:01:59.3]} 19. Be5 {[%clk
0:01:38.1]} 19... Qg6 {[%clk 0:01:56.4]} 20. Nc4 {[%clk 0:01:30.5]} 20... f6
{[%clk 0:01:50]} 21. Bf4 {[%clk 0:01:07.7]} 21... bxc6 {[%clk 0:01:43.7]} 22.
Qxc6 {[%clk 0:01:04.9]} 22... Be6 {[%clk 0:01:36]} 23. Nd6 {[%clk 0:01:02.9]}
23... Rf8 {[%clk 0:01:35.3]} 24. Re1 {[%clk 0:01:00.1]} 24... Bc8 {[%clk
0:01:14.1]} 25. Qd5+ {[%clk 0:00:53.1]} 25... Kh8 {[%clk 0:01:11.7]} 26. Nh4
{[%clk 0:00:53.1]} 26... Qc2 {[%clk 0:00:33.2]} 27. Qh5+ {[%clk 0:00:29.8]}
27... Kg8 {[%clk 0:00:32.2]} 28. Ng6 {[%clk 0:00:22.2]} 28... Qf2# {[%clk
0:00:31.4]} 0-1

[Event "Early-Titled-Tuesday-Blitz-September-26-2023"]
[Site "Chess.com"]
[Date "2023.09.26"]
[Round "5"]
[White "BeautiFullMindChess"]
[Black "stratacticos"]
[Result "1-0"]
[WhiteElo "2346"]
[BlackElo "1781"]
[TimeControl "180+1"]
[EndTime "8:57:18 PDT"]
[Termination "BeautiFullMindChess won on time"]

1. e4 {[%clk 0:02:58.4]} 1... c5 {[%clk 0:02:59.1]} 2. Nf3 {[%clk 0:02:54.6]}
2... Nc6 {[%clk 0:02:58.6]} 3. d4 {[%clk 0:02:55.5]} 3... cxd4 {[%clk
0:02:58.1]} 4. Nxd4 {[%clk 0:02:56.4]} 4... e5 {[%clk 0:02:58]} 5. Nb5 {[%clk
0:02:55.9]} 5... d6 {[%clk 0:02:57.8]} 6. c4 {[%clk 0:02:55.3]} 6... Be6 {[%clk
0:02:56.5]} 7. N5c3 {[%clk 0:02:53.7]} 7... Nf6 {[%clk 0:02:51.3]} 8. Be2 {[%clk
0:02:53.4]} 8... Be7 {[%clk 0:02:50.6]} 9. O-O {[%clk 0:02:52.5]} 9... Nd4
{[%clk 0:02:48.7]} 10. Be3 {[%clk 0:02:50.3]} 10... Nxe2+ {[%clk 0:02:48.3]} 11.
Qxe2 {[%clk 0:02:50.2]} 11... Rc8 {[%clk 0:02:47.5]} 12. Nd2 {[%clk 0:02:50.6]}
12... a6 {[%clk 0:02:38.2]} 13. f3 {[%clk 0:02:35.1]} 13... O-O {[%clk
0:02:34.4]} 14. Rac1 {[%clk 0:02:34.7]} 14... Nd7 {[%clk 0:02:10.5]} 15. b3
{[%clk 0:02:24.8]} 15... f5 {[%clk 0:02:01.4]} 16. exf5 {[%clk 0:02:24]} 16...
Bxf5 {[%clk 0:01:57.3]} 17. Nde4 {[%clk 0:02:17]} 17... Kh8 {[%clk 0:01:38.2]}
18. Rfd1 {[%clk 0:02:16.6]} 18... Bxe4 {[%clk 0:01:13.8]} 19. Nxe4 {[%clk
0:02:13.7]} 19... Nf6 {[%clk 0:01:13.6]} 20. Nxd6 {[%clk 0:02:07.4]} 20... Bxd6
{[%clk 0:01:09.7]} 21. c5 {[%clk 0:02:07.3]} 21... e4 {[%clk 0:00:55.2]} 22.
Rxd6 {[%clk 0:01:59]} 22... Qe7 {[%clk 0:00:54.7]} 23. Bd4 {[%clk 0:01:49.9]}
23... Qxd6 {[%clk 0:00:25.2]} 24. cxd6 {[%clk 0:01:49.4]} 24... Rxc1+ {[%clk
0:00:24.3]} 25. Kf2 {[%clk 0:01:50.1]} 25... exf3 {[%clk 0:00:24.1]} 26. gxf3
{[%clk 0:01:36.3]} 26... Rcc8 {[%clk 0:00:15.9]} 27. Qe7 {[%clk 0:01:29.2]}
27... Rce8 {[%clk 0:00:10.1]} 28. Qxb7 {[%clk 0:01:07.1]} 28... Ne4+ {[%clk
0:00:09]} 29. Kg2 {[%clk 0:01:02.2]} 1-0

[Event "Early-Titled-Tuesday-Blitz-September-26-2023"]
[Site "Chess.com"]
[Date "2023.09.26"]
[Round "5"]
[White "fastestmindalive"]
[Black "Giorno"]
[Result "1-0"]
[WhiteElo "2716"]
[BlackElo "2497"]
[TimeControl "180+1"]
[EndTime "8:57:21 PDT"]
[Termination "fastestmindalive won on time"]

1. e4 {[%clk 0:02:46.2]} 1... c6 {[%clk 0:02:54.2]} 2. Nc3 {[%clk 0:02:39.9]}
2... d5 {[%clk 0:02:55.1]} 3. Nf3 {[%clk 0:02:38.8]} 3... Bg4 {[%clk 0:02:53.3]}
4. h3 {[%clk 0:02:37.7]} 4... Bxf3 {[%clk 0:02:53.3]} 5. Qxf3 {[%clk 0:02:38.6]}
5... e6 {[%clk 0:02:52.9]} 6. g3 {[%clk 0:02:38.7]} 6... Nf6 {[%clk 0:02:51.8]}
7. Bg2 {[%clk 0:02:36]} 7... dxe4 {[%clk 0:02:50.2]} 8. Nxe4 {[%clk 0:02:36.9]}
8... Nxe4 {[%clk 0:02:49.5]} 9. Qxe4 {[%clk 0:02:37.8]} 9... Nd7 {[%clk
0:02:50.4]} 10. O-O {[%clk 0:02:37.1]} 10... Nf6 {[%clk 0:02:48.8]} 11. Qe2
{[%clk 0:02:36.6]} 11... Be7 {[%clk 0:02:45.6]} 12. a4 {[%clk 0:02:37.1]} 12...
a5 {[%clk 0:02:43]} 13. c3 {[%clk 0:02:36.3]} 13... O-O {[%clk 0:02:41.8]} 14.
d4 {[%clk 0:02:37]} 14... Nd5 {[%clk 0:02:41.1]} 15. f4 {[%clk 0:02:34.2]} 15...
Re8 {[%clk 0:02:38.2]} 16. Bd2 {[%clk 0:02:34.4]} 16... Bf6 {[%clk 0:02:32]} 17.
Rae1 {[%clk 0:02:33.1]} 17... Qb6 {[%clk 0:02:24.2]} 18. Bc1 {[%clk 0:02:32.1]}
18... Qb3 {[%clk 0:02:21.1]} 19. Qd1 {[%clk 0:02:30.6]} 19... Qxd1 {[%clk
0:02:20.1]} 20. Rxd1 {[%clk 0:02:31.5]} 20... Nb6 {[%clk 0:02:07.9]} 21. b3
{[%clk 0:02:29.8]} 21... Nd5 {[%clk 0:02:07.8]} 22. Rd3 {[%clk 0:02:28.8]} 22...
Nxc3 {[%clk 0:02:00.3]} 23. Rxc3 {[%clk 0:02:27.8]} 23... Bxd4+ {[%clk
0:02:00.4]} 24. Re3 {[%clk 0:02:28.4]} 24... Red8 {[%clk 0:01:58.9]} 25. Kf2
{[%clk 0:02:28]} 25... Bxe3+ {[%clk 0:01:58.5]} 26. Kxe3 {[%clk 0:02:28.9]}
26... Ra6 {[%clk 0:01:54.7]} 27. Be4 {[%clk 0:02:18.3]} 27... Rb6 {[%clk
0:01:48.2]} 28. Bc2 {[%clk 0:02:17.8]} 28... c5 {[%clk 0:01:46.9]} 29. Bd2
{[%clk 0:02:07.4]} 29... Ra6 {[%clk 0:01:42.4]} 30. Bc3 {[%clk 0:02:03.7]} 30...
b6 {[%clk 0:01:40.2]} 31. g4 {[%clk 0:01:59.9]} 31... Ra7 {[%clk 0:01:37.6]} 32.
h4 {[%clk 0:02:00.1]} 32... Rad7 {[%clk 0:01:35.8]} 33. h5 {[%clk 0:01:59.2]}
33... h6 {[%clk 0:01:09.5]} 34. g5 {[%clk 0:01:57]} 34... hxg5 {[%clk
0:00:42.6]} 35. fxg5 {[%clk 0:01:57.9]} 35... Rd5 {[%clk 0:00:43.5]} 36. Rg1
{[%clk 0:01:44]} 36... Kf8 {[%clk 0:00:33.8]} 37. h6 {[%clk 0:01:42.6]} 37...
gxh6 {[%clk 0:00:32]} 38. gxh6 {[%clk 0:01:41.4]} 38... Ke7 {[%clk 0:00:32.3]}
39. h7 {[%clk 0:01:38.8]} 39... Rh5 {[%clk 0:00:31.9]} 40. Rg8 {[%clk
0:01:35.8]} 40... Rh3+ {[%clk 0:00:30.2]} 41. Kf4 {[%clk 0:01:34.8]} 1-0

[Event "Early-Titled-Tuesday-Blitz-September-26-2023"]
[Site "Chess.com"]
[Date "2023.09.26"]
[Round "5"]
[White "JosefineHeinemann"]
[Black "spotbet"]
[Result "0-1"]
[WhiteElo "2555"]
[BlackElo "2386"]
[TimeControl "180+1"]
[EndTime "8:57:22 PDT"]
[Termination "spotbet won by resignation"]

1. Nf3 {[%clk 0:03:00.9]} 1... Nf6 {[%clk 0:01:56.6]} 2. g3 {[%clk 0:02:59]}
2... g6 {[%clk 0:01:56.8]} 3. Bg2 {[%clk 0:02:59.1]} 3... Bg7 {[%clk 0:01:57.7]}
4. O-O {[%clk 0:02:59.7]} 4... d5 {[%clk 0:01:58.3]} 5. d4 {[%clk 0:03:00.4]}
5... O-O {[%clk 0:01:59.1]} 6. c3 {[%clk 0:02:59.4]} 6... Ne4 {[%clk 0:01:59.5]}
7. Nbd2 {[%clk 0:02:57.5]} 7... Nxd2 {[%clk 0:01:59.9]} 8. Bxd2 {[%clk
0:02:53.4]} 8... Nc6 {[%clk 0:02:00.3]} 9. Bf4 {[%clk 0:02:52.7]} 9... Bg4
{[%clk 0:02:00]} 10. h3 {[%clk 0:02:52.7]} 10... Bxf3 {[%clk 0:02:00.3]} 11.
Bxf3 {[%clk 0:02:53.6]} 11... e6 {[%clk 0:02:00.8]} 12. a4 {[%clk 0:02:51.9]}
12... Ne7 {[%clk 0:02:01.2]} 13. a5 {[%clk 0:02:52.1]} 13... c6 {[%clk
0:02:01.7]} 14. a6 {[%clk 0:02:51.8]} 14... b6 {[%clk 0:02:02.1]} 15. Qa4 {[%clk
0:02:50.1]} 15... Rc8 {[%clk 0:02:01.3]} 16. Qa3 {[%clk 0:02:48.5]} 16... Qd7
{[%clk 0:02:01]} 17. Qd6 {[%clk 0:02:44]} 17... Qxd6 {[%clk 0:02:00.6]} 18. Bxd6
{[%clk 0:02:44.9]} 18... Rfe8 {[%clk 0:02:01.2]} 19. Ra3 {[%clk 0:02:43.6]}
19... Bf8 {[%clk 0:02:00.2]} 20. g4 {[%clk 0:02:32.1]} 20... Rcd8 {[%clk
0:01:52.3]} 21. Bc7 {[%clk 0:02:28]} 21... Rd7 {[%clk 0:01:51.9]} 22. Bh2 {[%clk
0:02:25.7]} 22... Nc8 {[%clk 0:01:52.3]} 23. Ra2 {[%clk 0:02:24.8]} 23... Bd6
{[%clk 0:01:52.7]} 24. b3 {[%clk 0:02:22.8]} 24... Bxh2+ {[%clk 0:01:52.7]} 25.
Kxh2 {[%clk 0:02:23.7]} 25... Nd6 {[%clk 0:01:53.3]} 26. Kg3 {[%clk 0:02:23.9]}
26... f5 {[%clk 0:01:53.7]} 27. g5 {[%clk 0:02:21.2]} 27... Ne4+ {[%clk
0:01:54]} 28. Bxe4 {[%clk 0:02:20.2]} 28... fxe4 {[%clk 0:01:54.6]} 29. f4
{[%clk 0:02:17.8]} 29... exf3 {[%clk 0:01:48.1]} 30. Rxf3 {[%clk 0:02:17.5]}
30... Rf8 {[%clk 0:01:48.1]} 31. Rxf8+ {[%clk 0:02:14.9]} 31... Kxf8 {[%clk
0:01:49]} 32. Kf4 {[%clk 0:02:12.2]} 32... Rf7+ {[%clk 0:01:46.9]} 33. Ke5
{[%clk 0:02:03.6]} 33... Ke7 {[%clk 0:01:47.1]} 34. e4 {[%clk 0:02:03.8]} 34...
Rf3 {[%clk 0:01:43.1]} 35. c4 {[%clk 0:02:01.6]} 35... Re3 {[%clk 0:01:40.4]}
36. cxd5 {[%clk 0:02:01.4]} 36... cxd5 {[%clk 0:01:40.5]} 37. Kf4 {[%clk
0:01:59.7]} 37... Rxe4+ {[%clk 0:01:40.4]} 38. Kg3 {[%clk 0:01:58.5]} 38... Re3+
{[%clk 0:01:40.3]} 39. Kg4 {[%clk 0:01:57.6]} 39... Rxb3 {[%clk 0:01:39.1]} 40.
Rc2 {[%clk 0:01:57.5]} 40... Kd6 {[%clk 0:01:38.7]} 41. Rc8 {[%clk 0:01:57.4]}
41... Rb4 {[%clk 0:01:39.3]} 42. Ra8 {[%clk 0:01:56.1]} 42... Rxd4+ {[%clk
0:01:39.6]} 43. Kg3 {[%clk 0:01:56.6]} 43... Ra4 {[%clk 0:01:38.9]} 44. Rxa7
{[%clk 0:01:56.9]} 44... Ke5 {[%clk 0:01:34.4]} 45. Ra8 {[%clk 0:01:54.1]} 45...
Ra3+ {[%clk 0:01:34.8]} 46. Kg2 {[%clk 0:01:53.3]} 46... Ke4 {[%clk 0:01:34.5]}
47. a7 {[%clk 0:01:53.2]} 47... e5 {[%clk 0:01:35]} 48. h4 {[%clk 0:01:52.3]}
48... d4 {[%clk 0:01:35.1]} 49. Kf2 {[%clk 0:01:52.5]} 49... Ra2+ {[%clk
0:01:34.8]} 50. Ke1 {[%clk 0:01:52.3]} 50... Kd3 {[%clk 0:01:35.1]} 51. Re8
{[%clk 0:01:42.7]} 51... Ra1+ {[%clk 0:01:32.8]} 52. Kf2 {[%clk 0:01:41.8]}
52... Rxa7 {[%clk 0:01:33.7]} 53. Rxe5 {[%clk 0:01:41.4]} 53... Ra2+ {[%clk
0:01:33.4]} 54. Ke1 {[%clk 0:01:39.5]} 54... Rh2 {[%clk 0:01:33.6]} 55. Rb5
{[%clk 0:01:37.9]} 55... Rxh4 {[%clk 0:01:33.6]} 56. Rb3+ {[%clk 0:01:36.9]}
56... Ke4 {[%clk 0:01:32.3]} 57. Rxb6 {[%clk 0:01:37.8]} 57... Rh5 {[%clk
0:01:28.9]} 58. Rb7 {[%clk 0:01:37.7]} 58... Kf4 {[%clk 0:01:26.5]} 59. Rd7
{[%clk 0:01:34.8]} 59... Kxg5 {[%clk 0:01:26.1]} 60. Rxd4 {[%clk 0:01:32.9]}
60... Rh2 {[%clk 0:01:26.2]} 61. Kf1 {[%clk 0:01:32.9]} 61... h5 {[%clk
0:01:25.2]} 62. Kg1 {[%clk 0:01:33.2]} 62... Ra2 {[%clk 0:01:25.3]} 63. Rb4
{[%clk 0:01:33.2]} 63... h4 {[%clk 0:01:25.3]} 64. Rb5+ {[%clk 0:01:31.5]} 64...
Kh6 {[%clk 0:01:25.6]} 65. Rb6 {[%clk 0:01:30.2]} 65... Kh5 {[%clk 0:01:25.6]}
66. Rb5+ {[%clk 0:01:28.4]} 66... g5 {[%clk 0:01:25.8]} 67. Rb4 {[%clk
0:01:29.2]} 67... h3 {[%clk 0:01:25.7]} 68. Kh1 {[%clk 0:01:28.7]} 68... g4
{[%clk 0:01:26]} 69. Rb3 {[%clk 0:01:25.9]} 69... Kh4 {[%clk 0:01:26.1]} 70. Kg1
{[%clk 0:01:24.5]} 70... Ra1+ {[%clk 0:01:20.3]} 71. Kh2 {[%clk 0:01:17]} 71...
g3+ {[%clk 0:01:20.8]} 72. Rxg3 {[%clk 0:01:12.7]} 72... Ra2+ {[%clk 0:01:21.7]}
0-1